bitfinex/quotes_SOLUSD_20250829
["timestamp","ask_amount","ask_price","bid_price","bid_amount"]
[1756484569254,26.0,205.41,205.34,0.74]
[1756484569458,0.71,205.42,205.34,11.91357067]
[1756484569660,11.17357067,205.4,205.34,11.91357067]
[1756484570047,11.17357067,205.41,205.35,11.17357067]
[1756484570243,11.17357067,205.39,205.35,4.86973459]
[1756484570443,43.64,205.43,205.36,0.71]
[1756484570762,11.17357067,205.41,205.36,0.71]
[1756484571163,11.17357067,205.4,205.36,0.71]
[1756484571343,0.71,205.45,205.38,11.17357067]
[1756484571543,0.71,205.48,205.4,11.17357067]
[1756484571860,11.17357067,205.47,205.41,11.17357067]
[1756484572060,13.59559401,205.52,205.42,11.17357067]
[1756484572240,11.17357067,205.49,205.44,28.21017502]
[1756484572557,11.17357067,205.49,205.45,0.71]
[1756484572758,0.77,205.53,205.45,0.71]
[1756484572962,11.17357067,205.51,205.46,11.17357067]
[1756484573264,11.17357067,205.51,205.46,11.88357067]
[1756484573451,11.17357067,205.5,205.46,0.71]
[1756484573651,0.77,205.53,205.46,0.71]
[1756484573851,11.17357067,205.5,205.46,0.71]
[1756484574865,11.17357067,205.48,205.47,4.86689054]
[1756484576172,11.17357067,205.48,205.44,12.16900311]
[1756484576353,11.17357067,205.45,205.43,4.86783819]
[1756484576556,11.17357067,205.44,205.43,4.86783819]
[1756484576947,11.88357067,205.44,205.39,4.86878621]
[1756484577147,11.17357067,205.41,205.39,4.86878621]
[1756484577450,11.17357067,205.42,205.39,4.86878621]
[1756484577652,0.71,205.44,205.39,4.86878621]
[1756484577870,11.17357067,205.4,205.35,4.86973459]
[1756484578052,11.17357067,205.36,205.34,0.03]
[1756484578255,11.17357067,205.35,205.34,0.03]
[1756484579458,26.14216157,205.4,205.34,0.03]
[1756484579666,11.17357067,205.36,205.34,0.03]
[1756484580052,11.17357067,205.35,205.34,0.03]
[1756484580952,0.71,205.42,205.34,0.03]
[1756484581154,0.71,205.44,205.35,11.17357067]
[1756484581396,44.27,205.48,205.38,42.85641934]
[1756484581679,16.85641934,205.41,205.39,26.0]
[1756484582055,16.85641934,205.4,205.35,26.0]
[1756484582254,16.85641934,205.42,205.36,17.57641934]
[1756484582581,16.85641934,205.43,205.37,22.44567969]
[1756484583150,0.14216157,205.47,205.37,22.44567969]
[1756484583374,16.85641934,205.43,205.37,22.44567969]
[1756484583678,16.85641934,205.43,205.37,34.61883058]
[1756484583854,16.85641934,205.39,205.37,30.86926035]
[1756484584257,16.85641934,205.39,205.35,4.86973459]
[1756484584480,0.71,205.43,205.34,0.03]
[1756484584481,16.85641934,205.36,205.34,0.03]
[1756484584668,16.85641934,205.35,205.34,0.03]
[1756484585373,0.71,205.36,205.34,0.03]
[1756484585574,16.85641934,205.35,205.34,0.03]
[1756484586780,0.14216157,205.38,205.34,0.03]
[1756484587078,30.59417492,205.35,205.34,0.03]
[1756484587291,39.59559401,205.32,205.26,0.03]
[1756484587479,16.99858091,205.27,205.26,0.03]
[1756484587686,0.14216157,205.25,205.16,4.99626164]
[1756484587993,16.85641934,205.2,205.16,30.87423135]
[1756484588164,16.85641934,205.21,205.16,5.59423135]
[1756484588358,16.85641934,205.19,205.15,4.90445247]
[1756484588676,16.85641934,205.2,205.16,0.72]
[1756484588881,0.85216157,205.25,205.17,0.72]
[1756484589058,16.85641934,205.22,205.17,0.72]
[1756484589486,0.85216157,205.25,205.16,16.85641934]
[1756484589777,16.85641934,205.21,205.17,4.87400692]
[1756484589985,0.85216157,205.25,205.17,5.59400692]
[1756484590184,16.85641934,205.21,205.17,4.87400692]
[1756484590487,16.85641934,205.18,205.15,0.03]
[1756484590784,16.85641934,205.17,205.15,0.03]
[1756484591086,26.0,205.24,205.15,4.90448208]
[1756484591290,16.85641934,205.18,205.15,0.03]
[1756484591470,0.71,205.22,205.15,4.90447811]
[1756484591668,16.85641934,205.2,205.15,22.48089745]
[1756484592382,16.85641934,205.21,205.16,17.57641934]
[1756484592562,16.85641934,205.22,205.17,0.72]
[1756484592764,16.85641934,205.23,205.17,17.57641934]
[1756484593499,16.85641934,205.22,205.17,17.57641934]
[1756484593976,16.85641934,205.18,205.15,0.03]
[1756484594859,0.14216157,205.21,205.15,0.03]
[1756484595283,16.85641934,205.2,205.15,4.90446307]
[1756484595486,16.85641934,205.2,205.16,0.72]
[1756484595669,0.14216157,205.23,205.16,0.72]
[1756484595987,16.85641934,205.2,205.17,4.87400692]
[1756484596188,16.85641934,205.2,205.15,16.88641934]
[1756484596379,16.85641934,205.2,205.16,4.87417504]
[1756484596592,16.85641934,205.19,205.15,4.90448027]
[1756484596766,16.85641934,205.18,205.15,4.90448027]
[1756484596968,26.0,205.22,205.15,4.90448027]
[1756484597166,0.14216157,205.25,205.17,16.88641934]
[1756484597381,16.85641934,205.23,205.17,16.88641934]
[1756484597611,0.14216157,205.25,205.17,16.88641934]
[1756484597612,16.85641934,205.22,205.17,16.88641934]
[1756484598096,16.85641934,205.22,205.17,22.48020906]
[1756484598598,16.85641934,205.23,205.18,16.85641934]
[1756484598786,0.85216157,205.25,205.17,0.03]
[1756484598787,16.85641934,205.19,205.17,0.03]
[1756484598971,16.85641934,205.18,205.17,0.03]
[1756484599169,0.71,205.19,205.17,0.03]
[1756484599492,0.14216157,205.21,205.17,0.03]
[1756484599706,16.85641934,205.18,205.17,0.03]
[1756484600268,0.71,205.27,205.17,0.75]
[1756484600467,0.71,205.3,205.19,16.85641934]
[1756484600682,26.0,205.29,205.2,0.72]
[1756484600889,16.85641934,205.27,205.21,16.85641934]
[1756484601093,16.85641934,205.27,205.22,0.72]
[1756484601290,16.85641934,205.26,205.23,0.72]
[1756484601499,16.85641934,205.26,205.21,26.0]
[1756484601678,16.85641934,205.26,205.22,0.72]
[1756484602095,16.85641934,205.26,205.23,4.87258198]
[1756484602281,0.71,205.3,205.23,4.87258198]
[1756484602481,16.85641934,205.27,205.23,4.87258198]
[1756484603606,16.85641934,205.27,205.22,4.87281941]
[1756484603779,0.71,205.3,205.22,21.72923875]
[1756484603985,16.85641934,205.31,205.25,16.85641934]
[1756484604199,16.85641934,205.31,205.25,0.72]
[1756484604501,26.0,205.32,205.25,17.57641934]
[1756484604702,16.85641934,205.3,205.25,0.72]
[1756484605006,16.85641934,205.3,205.25,17.57641934]
[1756484605296,16.85641934,205.3,205.25,0.72]
[1756484605500,16.85641934,205.3,205.25,5.59191978]
[1756484605802,16.85641934,205.26,205.18,0.72]
[1756484606006,16.85641934,205.23,205.18,0.72]
[1756484606601,16.85641934,205.2,205.17,0.03]
[1756484606992,16.85641934,205.21,205.17,0.03]
[1756484607499,16.85641934,205.27,205.2,16.85641934]
[1756484607702,16.85641934,205.24,205.2,4.87328003]
[1756484607893,16.85641934,205.21,205.17,0.03]
[1756484608496,16.85641934,205.22,205.17,0.75]
[1756484608799,16.85641934,205.23,205.17,16.88641934]
[1756484608987,39.73775558,205.27,205.18,16.85641934]
[1756484609181,16.85641934,205.24,205.19,16.85641934]
[1756484609381,16.85641934,205.24,205.18,16.85641934]
[1756484609580,16.85641934,205.24,205.17,4.90388247]
[1756484609581,16.85641934,205.21,205.17,0.03]
[1756484609801,0.71,205.24,205.17,0.03]
[1756484610002,16.85641934,205.21,205.17,0.03]
[1756484610203,16.85641934,205.19,205.17,0.03]
[1756484610396,16.85641934,205.2,205.17,0.03]
[1756484611407,11.19650913,205.2,205.17,0.03]
[1756484612002,4.87287859,205.22,205.17,0.03]
[1756484612212,11.19650913,205.2,205.17,0.03]
[1756484614616,5.01478104,205.23,205.17,0.03]
[1756484614810,11.19650913,205.2,205.17,0.03]
[1756484615011,11.19650913,205.18,205.17,0.03]
[1756484615396,30.87303468,205.22,205.17,0.03]
[1756484615605,11.19650913,205.18,205.17,0.03]
[1756484616017,11.86650913,205.18,205.17,0.03]
[1756484616406,25.60426471,205.18,205.17,0.03]
[1756484616808,30.47803408,205.18,205.17,0.03]
[1756484617124,73.85803408,205.18,205.17,0.03]
[1756484619005,62.66152495,205.18,205.17,0.03]
[1756484619207,73.85803408,205.18,205.17,0.03]
[1756484620256,36.38824328,205.25,205.17,0.03]
[1756484620545,11.19650913,205.18,205.17,0.03]
[1756484620731,11.3386707,205.18,205.17,0.03]
[1756484621818,60.24244007,205.18,205.17,0.03]
[1756484622023,54.6986707,205.18,205.17,0.03]
[1756484623250,59.57244007,205.18,205.17,0.03]
[1756484623448,60.24244007,205.18,205.17,0.03]
[1756484623746,54.6986707,205.18,205.17,0.03]
[1756484623921,59.57244007,205.18,205.17,0.03]
[1756484626631,73.16803408,205.18,205.17,0.03]
[1756484626835,73.83803408,205.18,205.17,0.03]
[1756484627146,73.83803408,205.18,205.15,0.03]
[1756484627147,13.73775558,205.17,205.15,0.03]
[1756484627328,44.61223766,205.15,205.14,0.03]
[1756484627636,99.12874679,205.15,205.14,0.03]
[1756484627952,99.12874679,205.15,205.04,0.03]
[1756484627953,26.0,205.07,205.04,0.03]
[1756484628250,11.3386707,205.05,205.04,0.03]
[1756484628746,16.06124284,205.05,205.04,0.03]
[1756484629448,11.3386707,205.05,205.04,0.03]
[1756484630035,11.19650913,205.05,205.04,0.74]
[1756484631727,11.19650913,205.05,205.04,0.03]
[1756484632147,16.21553,205.05,205.04,0.03]
[1756484632344,30.48112401,205.05,205.04,0.03]
[1756484632747,30.48112401,205.05,205.01,0.03]
[1756484632748,39.59559401,205.02,205.01,0.03]
[1756484632944,94.21426471,205.02,205.01,0.03]
[1756484633251,94.88426471,205.02,205.01,0.03]
[1756484633455,99.76183762,205.02,205.01,0.03]
[1756484633640,94.21426471,205.02,205.01,0.03]
[1756484634159,80.6186707,205.02,205.01,0.03]
[1756484635158,11.19650913,205.02,205.01,0.74]
[1756484635548,11.19650913,205.02,205.01,0.03]
[1756484635932,12.18575842,205.16,205.01,0.03]
[1756484636138,11.19650913,205.07,205.01,0.74]
[1756484636539,11.19650913,205.09,205.01,0.74]
[1756484636755,11.19650913,205.08,205.01,0.74]
[1756484637056,11.19650913,205.05,205.01,0.74]
[1756484637656,0.14216157,205.1,205.02,11.90650913]
[1756484637952,54.45650913,205.12,205.06,11.19650913]
[1756484638155,54.45650913,205.12,205.07,0.71]
[1756484638536,11.19650913,205.11,205.08,0.71]
[1756484638736,11.19650913,205.1,205.05,0.71]
[1756484638937,43.26,205.12,205.06,11.90650913]
[1756484639149,0.06,205.15,205.07,0.71]
[1756484639150,11.19650913,205.11,205.07,0.71]
[1756484639352,11.19650913,205.12,205.08,0.71]
[1756484639664,11.19650913,205.14,205.09,16.07241726]
[1756484639961,11.25650913,205.15,205.1,0.71]
[1756484640161,11.25650913,205.15,205.11,0.71]
[1756484640162,0.06,205.15,205.11,0.71]
[1756484640361,11.25650913,205.15,205.12,0.71]
[1756484640664,0.06,205.15,205.13,0.69]
[1756484640865,0.06,205.15,205.14,0.69]
[1756484641061,0.06,205.15,205.13,0.69]
[1756484641251,0.06,205.15,205.09,4.87590813]
[1756484641252,11.19650913,205.14,205.09,5.56590813]
[1756484641568,0.06,205.15,205.14,4.8747197]
[1756484641749,0.06,205.15,205.14,16.07122883]
[1756484641954,0.06,205.15,205.14,16.76122883]
[1756484642176,0.06,205.15,205.14,5.5647197]
[1756484642341,0.06,205.15,205.14,0.69]
[1756484643851,0.06,205.15,205.14,5.5647197]
[1756484644454,0.06,205.15,205.11,11.88650913]
[1756484644655,11.19650913,205.13,205.08,37.19650913]
[1756484644864,11.19650913,205.12,205.09,0.69]
[1756484645553,11.19650913,205.13,205.1,0.69]
[1756484645965,0.06,205.15,205.1,0.69]
[1756484646172,11.19650913,205.13,205.1,0.69]
[1756484646415,11.19650913,205.13,205.09,4.87590813]
[1756484646416,0.06,205.15,205.12,11.19650913]
[1756484646874,0.06,205.15,205.13,0.69]
[1756484647259,0.06,205.15,205.14,11.88650913]
[1756484647468,0.06,205.15,205.14,0.69]
[1756484647664,0.06,205.15,205.14,5.5647197]
[1756484648499,0.06,205.15,205.14,0.69]
[1756484648857,0.06,205.15,205.12,4.87497962]
[1756484648858,11.25650913,205.15,205.12,4.87497962]
[1756484649169,11.25650913,205.15,205.11,4.87542922]
[1756484649476,11.25650913,205.15,205.11,5.56542922]
[1756484649677,0.06,205.15,205.12,0.69]
[1756484649882,0.06,205.15,205.13,0.69]
[1756484650589,0.06,205.15,205.14,0.69]
[1756484651871,0.06,205.15,205.14,5.5647197]
[1756484652771,0.06,205.15,205.13,4.87492294]
[1756484652988,11.19650913,205.14,205.09,43.81]
[1756484653288,11.19650913,205.14,205.1,0.69]
[1756484653875,11.19650913,205.13,205.1,5.56550624]
[1756484654084,11.19650913,205.12,205.08,4.87591242]
[1756484654380,11.19650913,205.12,205.07,37.19650913]
[1756484654381,11.19650913,205.09,205.05,5.5668593]
[1756484654583,0.14216157,205.14,205.06,0.69]
[1756484654787,11.19650913,205.09,205.06,0.69]
[1756484654983,11.19650913,205.09,205.05,4.8768593]
[1756484655184,11.19650913,205.08,205.06,0.69]
[1756484655483,0.14216157,205.12,205.07,0.69]
[1756484655690,11.19650913,205.09,205.07,0.69]
[1756484656087,0.14216157,205.14,205.08,0.69]
[1756484656584,26.06,205.15,205.08,11.88650913]
[1756484656887,11.19650913,205.13,205.09,0.69]
[1756484657084,0.06,205.15,205.09,0.69]
[1756484657590,11.25650913,205.15,205.1,11.19650913]
[1756484657889,11.19650913,205.12,205.07,4.87620502]
[1756484658090,11.19650913,205.11,205.06,4.87656844]
[1756484658290,11.19650913,205.11,205.06,5.56656844]
[1756484658592,0.14216157,205.13,205.06,16.76307757]
[1756484658778,11.19650913,205.11,205.06,16.76307757]
[1756484658973,0.06,205.15,205.1,11.19650913]
[1756484659176,0.06,205.15,205.11,0.69]
[1756484659375,0.06,205.15,205.11,11.19650913]
[1756484659575,0.06,205.15,205.12,11.88650913]
[1756484659986,0.06,205.15,205.09,0.69]
[1756484660189,0.06,205.15,205.11,11.19650913]
[1756484660386,0.06,205.15,205.11,11.88650913]
[1756484660586,0.06,205.15,205.12,11.88650913]
[1756484660976,0.06,205.15,205.12,0.69]
[1756484661173,11.19650913,205.14,205.1,4.8756704]
[1756484661411,0.06,205.15,205.11,0.69]
[1756484661679,0.06,205.15,205.12,0.69]
[1756484662312,0.06,205.15,205.13,5.56495734]
[1756484663509,0.06,205.15,205.14,16.76122883]
[1756484664386,0.06,205.18,205.17,11.19650913]
[1756484664802,0.06,205.18,205.17,11.88650913]
[1756484665495,0.06,205.18,205.17,16.76051605]
[1756484667388,0.06,205.18,205.17,5.56400692]
[1756484667588,0.06,205.18,205.17,16.76051605]
[1756484668694,3.89568885,205.25,205.19,48.39301826]
[1756484668695,0.06,205.21,205.19,48.39301826]
[1756484668882,0.06,205.21,205.2,26.69]
[1756484669084,0.06,205.21,205.2,80.86650913]
[1756484669294,0.06,205.21,205.2,37.88650913]
[1756484669485,0.06,205.21,205.2,85.73980347]
[1756484670787,0.06,205.21,205.2,96.9363126]
[1756484671004,0.06,205.21,205.2,42.75980347]
[1756484671196,0.06,205.21,205.2,42.06980347]
[1756484671510,0.06,205.21,205.2,85.74980347]
[1756484672094,0.06,205.21,205.2,42.78980347]
[1756484672404,0.06,205.21,205.18,11.19650913]
[1756484672808,11.88650913,205.2,205.1,0.72]
[1756484673010,11.19650913,205.19,205.13,11.19650913]
[1756484673312,0.06,205.21,205.17,11.19650913]
[1756484673610,0.06,205.21,205.19,11.19650913]
[1756484674116,0.06,205.21,205.17,11.19650913]
[1756484674497,0.69,205.2,205.15,16.07095588]
[1756484674699,11.88650913,205.2,205.15,59.01095588]
[1756484675016,11.88650913,205.19,205.13,42.94]
[1756484675201,11.88650913,205.19,205.14,11.19650913]
[1756484675404,0.69,205.19,205.14,11.19650913]
[1756484675612,11.88650913,205.19,205.14,4.87458556]
[1756484675812,11.19650913,205.19,205.14,16.79109469]
[1756484676017,0.14216157,205.2,205.14,16.79109469]
[1756484676201,11.19650913,205.19,205.14,16.79109469]
[1756484676419,11.19650913,205.19,205.14,16.07109469]
[1756484676917,0.20216157,205.21,205.14,16.07109469]
[1756484677124,0.06,205.21,205.18,11.19650913]
[1756484677604,0.06,205.21,205.19,4.87353184]
[1756484677801,0.06,205.21,205.2,11.19650913]
[1756484678232,0.06,205.21,205.2,11.91650913]
[1756484678431,0.06,205.21,205.2,23.11301826]
[1756484678728,0.06,205.21,205.2,11.91650913]
[1756484679928,0.06,205.21,205.2,16.78980347]
[1756484680095,0.06,205.21,205.2,27.9863126]
[1756484681404,0.06,205.21,205.2,48.9863126]
[1756484682113,0.06,205.23,205.22,26.0]
[1756484682303,0.06,205.23,205.22,37.19650913]
[1756484682511,0.06,205.23,205.22,37.91650913]
[1756484682711,0.06,205.23,205.22,80.77650913]
[1756484683108,0.06,205.26,205.25,26.0]
[1756484683427,0.06,205.26,205.25,80.05650913]
[1756484683725,0.06,205.26,205.25,69.58]
[1756484683924,0.06,205.26,205.25,80.77650913]
[1756484684103,0.06,205.26,205.25,85.64861631]
[1756484684721,0.06,205.26,205.25,84.90861631]
[1756484685027,0.06,205.26,205.25,54.03650913]
[1756484685413,0.06,205.26,205.25,54.75650913]
[1756484685917,0.06,205.26,205.25,54.03650913]
[1756484686109,0.06,205.26,205.25,58.90861631]
[1756484687033,0.06,205.26,205.25,47.71210718]
[1756484688831,0.06,205.26,205.25,48.43210718]
[1756484689827,0.06,205.26,205.25,47.67210718]
[1756484690033,0.06,205.26,205.25,68.8]
[1756484690714,0.06,205.26,205.25,73.67210718]
[1756484690924,0.75,205.26,205.19,0.72]
[1756484691106,0.75,205.26,205.15,0.03]
[1756484691107,11.19650913,205.24,205.16,0.72]
[1756484691303,11.88650913,205.24,205.18,11.22650913]
[1756484691501,11.19650913,205.23,205.19,42.78]
[1756484691730,11.88650913,205.23,205.19,42.78]
[1756484691918,0.69,205.22,205.19,42.78]
[1756484692114,0.69,205.22,205.18,16.10020766]
[1756484692317,11.88650913,205.21,205.18,0.03]
[1756484692530,0.69,205.2,205.18,0.03]
[1756484692726,0.06,205.26,205.19,11.91650913]
[1756484692931,0.06,205.26,205.25,11.19650913]
[1756484693230,0.06,205.26,205.25,53.95650913]
[1756484694009,0.06,205.26,205.25,54.67650913]
[1756484694609,0.06,205.26,205.25,59.54861631]
[1756484695833,0.06,205.26,205.25,16.78861631]
[1756484696034,0.06,205.26,205.25,59.52861631]
[1756484696327,0.06,205.26,205.25,16.78861631]
[1756484697031,0.06,205.26,205.25,59.52861631]
[1756484697529,0.06,205.26,205.25,16.78861631]
[1756484697728,0.06,205.26,205.25,59.50861631]
[1756484698228,0.06,205.26,205.25,58.78861631]
[1756484698606,0.75,205.31,205.26,999.94]
[1756484698807,0.75,205.31,205.28,11.19650913]
[1756484699610,0.75,205.31,205.28,4.87139516]
[1756484699811,0.75,205.31,205.28,11.19650913]
[1756484700143,0.06,205.31,205.28,54.61650913]
[1756484700434,0.06,205.31,205.28,80.61650913]
[1756484700617,0.06,205.31,205.28,37.91650913]
[1756484701011,0.06,205.31,205.28,80.61650913]
[1756484701220,0.06,205.31,205.28,63.78790429]
[1756484701444,0.06,205.31,205.28,106.48790429]
[1756484703932,0.06,205.31,205.28,106.46790429]
[1756484704928,0.06,205.31,205.28,84.72790429]
[1756484705240,0.06,205.31,205.28,42.66]
[1756484705439,0.06,205.31,205.28,53.85650913]
[1756484706347,0.06,205.31,205.28,54.53650913]
[1756484706845,0.06,205.31,205.28,53.83650913]
[1756484707413,0.06,205.31,205.28,58.70790429]
[1756484707839,0.76,205.29,205.26,999.94]
[1756484708038,0.7,205.28,205.26,999.94]
[1756484708229,0.84216157,205.27,205.26,999.94]
[1756484709342,12.0386707,205.27,205.26,999.94]
[1756484709840,56.50589719,205.27,205.26,999.65]
[1756484710140,93.12589719,205.27,205.26,765.83318784]
[1756484710445,93.12589719,205.27,205.26,738.52605499]
[1756484710736,93.12589719,205.27,205.26,653.22551695]
[1756484710737,123.74377787,205.27,205.26,653.22551695]
[1756484710937,123.74377787,205.27,205.26,440.33181262]
[1756484711240,123.74377787,205.27,205.26,298.09003713]
[1756484711537,81.12377787,205.27,205.26,253.61813217]
[1756484711732,93.12589719,205.27,205.26,253.61813217]
[1756484711925,43.32,205.27,205.26,253.61813217]
[1756484712128,54.51650913,205.27,205.26,253.61813217]
[1756484712319,54.6586707,205.27,205.26,253.61813217]
[1756484713015,0.06,205.29,205.26,253.61813217]
[1756484713230,11.25650913,205.29,205.26,253.61813217]
[1756484713439,11.86650913,205.29,205.26,253.61813217]
[1756484713840,0.14216157,205.28,205.26,253.61813217]
[1756484714041,37.3386707,205.27,205.26,253.61813217]
[1756484714340,51.54426471,205.27,205.26,253.61813217]
[1756484715531,87.61240632,205.27,205.26,21.18366995]
[1756484715847,76.41589719,205.27,205.26,21.18366995]
[1756484716323,33.59559401,205.24,205.23,0.03]
[1756484716523,26.14216157,205.21,205.2,0.03]
[1756484716721,13.73775558,205.2,205.18,0.03]
[1756484717046,24.93426471,205.19,205.18,0.03]
[1756484717235,25.54426471,205.19,205.18,0.03]
[1756484718149,29.49762867,205.19,205.18,0.03]
[1756484718533,42.72216157,205.19,205.18,0.03]
[1756484718740,79.77650913,205.19,205.18,0.03]
[1756484719134,68.58,205.19,205.18,0.03]
[1756484719341,11.19650913,205.21,205.18,0.71]
[1756484719648,53.77650913,205.24,205.18,5.58359368]
[1756484719949,42.58,205.24,205.2,11.19650913]
[1756484720150,42.58,205.24,205.21,0.68]
[1756484720458,53.77650913,205.24,205.21,0.68]
[1756484720955,0.06,205.2,205.18,5.58366377]
[1756484721180,0.06,205.2,205.19,11.87650913]
[1756484721655,0.06,205.2,205.19,16.75004097]
[1756484722151,4.01629214,205.28,205.19,16.75004097]
[1756484722152,0.06,205.31,205.23,26.0]
[1756484722351,0.06,205.31,205.27,11.19650913]
[1756484722742,0.06,205.31,205.28,0.68]
[1756484723251,0.06,205.31,205.28,11.87650913]
[1756484723628,0.06,205.31,205.28,16.74790429]
[1756484724836,0.06,205.31,205.28,4.87139516]
[1756484725035,0.06,205.31,205.28,16.74790429]
[1756484727251,0.06,205.31,205.28,4.87139516]
[1756484727558,0.06,205.31,205.28,16.06790429]
[1756484727943,0.06,205.31,205.28,11.19650913]
[1756484728462,0.06,205.31,205.28,16.06790429]
[1756484730363,0.06,205.31,205.28,16.74790429]
[1756484730855,26.0,205.33,205.28,16.74790429]
[1756484730856,0.1,205.36,205.31,26.0]
[1756484731054,0.1,205.36,205.35,11.19650913]
[1756484731466,0.1,205.36,205.35,11.86650913]
[1756484731646,0.1,205.36,205.35,11.19650913]
[1756484732056,0.1,205.36,205.35,16.06624372]
[1756484734166,0.1,205.36,205.35,16.73624372]
[1756484735065,0.1,205.4,205.35,42.50617422]
[1756484735260,0.1,205.4,205.39,11.19650913]
[1756484735767,0.1,205.4,205.35,17.04407108]
[1756484735972,0.1,205.4,205.39,11.19650913]
[1756484737473,0.1,205.4,205.39,16.06529534]
[1756484737667,0.1,205.4,205.39,16.73529534]
[1756484740480,0.1,205.4,205.39,16.06529534]
[1756484740777,0.1,205.4,205.35,12.17433649]
[1756484740948,0.1,205.4,205.39,11.19650913]
[1756484741568,0.1,205.4,205.39,16.73529534]
[1756484742666,0.1,205.4,205.39,59.13529534]
[1756484742870,1e-08,205.4,205.39,98.73088935]
[1756484743067,0.06,205.45,205.4,13.59559401]
[1756484743271,0.66,205.55,205.44,22.39301826]
[1756484743569,26.0,205.54,205.51,11.19650913]
[1756484743782,26.0,205.54,205.52,4.8657065]
[1756484744153,3.97600723,205.57,205.52,16.06221563]
[1756484744360,0.66,205.56,205.52,16.06221563]
[1756484744574,26.66,205.55,205.51,16.06242828]
[1756484745061,0.14216157,205.54,205.51,16.06242828]
[1756484745682,0.14216157,205.54,205.48,4.86665368]
[1756484745866,0.14216157,205.54,205.51,11.19650913]
[1756484746389,0.14216157,205.54,205.48,4.86665368]
[1756484746575,0.14216157,205.54,205.5,11.19650913]
[1756484746878,11.3386707,205.54,205.49,11.19650913]
[1756484747178,0.14216157,205.54,205.49,11.19650913]
[1756484747980,0.14216157,205.54,205.5,11.19650913]
[1756484748475,0.14216157,205.54,205.5,4.86618004]
[1756484748670,11.3386707,205.54,205.5,4.86618004]
[1756484748874,37.3386707,205.51,205.37,13.59559401]
[1756484749084,37.3386707,205.51,205.46,11.19650913]
[1756484749256,26.14216157,205.51,205.46,11.19650913]
[1756484749456,26.0,205.52,205.49,11.19650913]
[1756484749771,11.3386707,205.54,205.49,11.19650913]
[1756484749972,11.19650913,205.53,205.47,11.86650913]
[1756484750163,11.19650913,205.51,205.46,11.19650913]
[1756484750357,11.19650913,205.51,205.47,0.67]
[1756484750552,11.19650913,205.51,205.46,11.19650913]
[1756484750758,0.80216157,205.54,205.47,11.86650913]
[1756484750759,11.19650913,205.52,205.47,11.86650913]
[1756484750958,0.14216157,205.54,205.48,11.86650913]
[1756484751174,11.19650913,205.53,205.48,0.67]
[1756484751383,11.19650913,205.5,205.45,0.67]
[1756484751576,11.19650913,205.5,205.44,16.06411037]
[1756484751769,11.19650913,205.49,205.44,16.06411037]
[1756484751971,11.19650913,205.49,205.44,4.86760124]
[1756484752162,11.19650913,205.49,205.44,5.53760124]
[1756484752475,11.19650913,205.5,205.45,11.86650913]
[1756484753180,11.19650913,205.5,205.45,11.19650913]
[1756484753386,11.19650913,205.51,205.46,11.19650913]
[1756484753760,0.14216157,205.51,205.46,16.73359553]
[1756484753956,11.3386707,205.51,205.46,16.73359553]
[1756484754163,11.3386707,205.51,205.46,16.81624053]
[1756484754481,11.3386707,205.51,205.47,0.67]
[1756484754780,5.52525405,205.54,205.49,11.19650913]
[1756484754781,11.19650913,205.54,205.49,11.19650913]
[1756484754957,11.19650913,205.53,205.46,5.6197314]
[1756484755156,11.19650913,205.53,205.47,11.19650913]
[1756484755682,37.19650913,205.54,205.48,11.19650913]
[1756484755882,11.19650913,205.53,205.47,11.19650913]
[1756484756186,11.19650913,205.52,205.46,16.81624053]
[1756484756775,11.19650913,205.5,205.46,4.9497314]
[1756484756978,0.66,205.53,205.46,4.9497314]
[1756484758489,26.66,205.53,205.46,4.9497314]
[1756484759382,11.19650913,205.48,205.46,0.082645]
[1756484759583,11.19650913,205.47,205.46,0.082645]
[1756484760381,11.9986707,205.47,205.46,0.082645]